[Event "Early-Titled-Tuesday-Blitz-January-23-2024"]
[Site "Chess.com"]
[Date "2024.01.23"]
[Round "10"]
[White "Korchmar_Vasiliy"]
[Black "tandaleo"]
[Result "1-0"]
[WhiteElo "2729"]
[BlackElo "2555"]
[TimeControl "180+1"]
[EndTime "9:54:11 PST"]
[Termination "Korchmar_Vasiliy won by resignation"]

1. e4 {[%clk 0:03:00.9]} 1... e5 {[%clk 0:03:00.3]} 2. Nf3 {[%clk 0:03:01.1]}
2... Nc6 {[%clk 0:03:00.9]} 3. Bc4 {[%clk 0:03:01.8]} 3... Bc5 {[%clk
0:03:00.5]} 4. c3 {[%clk 0:03:02.1]} 4... Nf6 {[%clk 0:02:59.5]} 5. d3 {[%clk
0:03:02.7]} 5... d6 {[%clk 0:02:59.4]} 6. Bg5 {[%clk 0:03:02.7]} 6... h6 {[%clk
0:02:55.7]} 7. Bh4 {[%clk 0:03:03.2]} 7... g5 {[%clk 0:02:44.3]} 8. Bg3 {[%clk
0:03:03.2]} 8... Be6 {[%clk 0:02:40.6]} 9. Bxe6 {[%clk 0:02:48.3]} 9... fxe6
{[%clk 0:02:40.7]} 10. Qb3 {[%clk 0:02:47.9]} 10... Qd7 {[%clk 0:02:40]} 11. O-O
{[%clk 0:02:33.8]} 11... O-O-O {[%clk 0:02:39.8]} 12. a4 {[%clk 0:02:25.8]}
12... h5 {[%clk 0:02:30.2]} 13. h4 {[%clk 0:02:24.3]} 13... g4 {[%clk
0:02:12.9]} 14. Ng5 {[%clk 0:02:22.4]} 14... Rhe8 {[%clk 0:02:08.9]} 15. Qc2
{[%clk 0:02:08.8]} 15... a6 {[%clk 0:01:46.8]} 16. b4 {[%clk 0:02:08.5]} 16...
Ba7 {[%clk 0:01:45]} 17. b5 {[%clk 0:02:08.9]} 17... Na5 {[%clk 0:01:40.1]} 18.
bxa6 {[%clk 0:02:08.2]} 18... bxa6 {[%clk 0:01:41]} 19. Nd2 {[%clk 0:02:06.4]}
19... Nh7 {[%clk 0:01:35.8]} 20. Nxh7 {[%clk 0:02:01.6]} 20... Qxh7 {[%clk
0:01:36.1]} 21. Rab1 {[%clk 0:02:01.9]} 21... Kd7 {[%clk 0:01:34.2]} 22. Nb3
{[%clk 0:01:40.9]} 22... Nc6 {[%clk 0:01:30.8]} 23. d4 {[%clk 0:01:40]} 23...
exd4 {[%clk 0:01:17.8]} 24. cxd4 {[%clk 0:01:40.9]} 24... d5 {[%clk 0:01:18.7]}
25. Rfc1 {[%clk 0:01:33.8]} 25... Qxe4 {[%clk 0:01:00.6]} 26. Qxc6+ {[%clk
0:01:33.3]} 26... Ke7 {[%clk 0:01:01.1]} 27. Re1 {[%clk 0:01:23.2]} 27... Qf5
{[%clk 0:00:58.5]} 28. Nc5 {[%clk 0:01:21.9]} 28... Bxc5 {[%clk 0:00:58]} 29.
Qxc5+ {[%clk 0:01:22.1]} 29... Kf7 {[%clk 0:00:58.4]} 30. Qxc7+ {[%clk
0:01:22.2]} 30... Kg6 {[%clk 0:00:58.8]} 31. Rb7 {[%clk 0:01:20.2]} 1-0

[Event "Early-Titled-Tuesday-Blitz-January-23-2024"]
[Site "Chess.com"]
[Date "2024.01.23"]
[Round "10"]
[White "JoliyRoger"]
[Black "Crazy_girl99"]
[Result "1-0"]
[WhiteElo "2498"]
[BlackElo "2595"]
[TimeControl "180+1"]
[EndTime "9:54:26 PST"]
[Termination "JoliyRoger won by resignation"]

1. d4 {[%clk 0:02:59.8]} 1... Nf6 {[%clk 0:02:59.8]} 2. c4 {[%clk 0:02:59.3]}
2... e6 {[%clk 0:02:59.7]} 3. Nf3 {[%clk 0:02:58.8]} 3... d5 {[%clk 0:02:58.5]}
4. e3 {[%clk 0:02:58.7]} 4... b6 {[%clk 0:02:58.5]} 5. Nc3 {[%clk 0:02:58.9]}
5... Bb7 {[%clk 0:02:58.9]} 6. b3 {[%clk 0:02:59.5]} 6... Nbd7 {[%clk
0:02:59.3]} 7. Bb2 {[%clk 0:03:00.2]} 7... Bb4 {[%clk 0:02:59.5]} 8. Bd3 {[%clk
0:02:57]} 8... O-O {[%clk 0:02:59.2]} 9. O-O {[%clk 0:02:56.9]} 9... a5 {[%clk
0:02:59.5]} 10. a3 {[%clk 0:02:38.3]} 10... Be7 {[%clk 0:02:59.2]} 11. Qc2
{[%clk 0:02:22.4]} 11... c5 {[%clk 0:02:58.9]} 12. cxd5 {[%clk 0:02:22.3]} 12...
exd5 {[%clk 0:02:58.4]} 13. Rfd1 {[%clk 0:02:19.8]} 13... Rc8 {[%clk 0:02:58.1]}
14. Qe2 {[%clk 0:02:19.5]} 14... Re8 {[%clk 0:02:56.6]} 15. Ba6 {[%clk
0:02:19.4]} 15... Qc7 {[%clk 0:02:55.2]} 16. Bxb7 {[%clk 0:02:16.8]} 16... Qxb7
{[%clk 0:02:55.5]} 17. Qb5 {[%clk 0:02:13.8]} 17... Bd6 {[%clk 0:02:51.9]} 18.
Na4 {[%clk 0:02:04.8]} 18... c4 {[%clk 0:02:46.9]} 19. Ne5 {[%clk 0:01:55]}
19... Nxe5 {[%clk 0:02:40.2]} 20. dxe5 {[%clk 0:01:55.6]} 20... Bxe5 {[%clk
0:02:40.5]} 21. Bxe5 {[%clk 0:01:56.2]} 21... Rxe5 {[%clk 0:02:40.7]} 22. bxc4
{[%clk 0:01:32.9]} 22... Rxc4 {[%clk 0:02:35.3]} 23. Qxb6 {[%clk 0:01:32.7]}
23... Qc8 {[%clk 0:02:26.5]} 24. Qb2 {[%clk 0:01:28.6]} 24... Qg4 {[%clk
0:02:15.5]} 25. Qxe5 {[%clk 0:01:23.9]} 25... Re4 {[%clk 0:01:58.9]} 26. Qb8+
{[%clk 0:00:47.5]} 26... Re8 {[%clk 0:01:58.1]} 27. Qb5 {[%clk 0:00:48]} 27...
h5 {[%clk 0:01:57.4]} 28. Rd4 {[%clk 0:00:44.4]} 28... Qg5 {[%clk 0:01:48.3]}
29. Rf4 {[%clk 0:00:44.5]} 29... Re6 {[%clk 0:01:44.1]} 30. Nc5 {[%clk
0:00:33.7]} 30... Re5 {[%clk 0:01:41.4]} 31. Nd7 {[%clk 0:00:32.1]} 31... Nxd7
{[%clk 0:01:39.5]} 32. Qxd7 {[%clk 0:00:32.7]} 32... h4 {[%clk 0:01:37.3]} 33.
Qxf7+ {[%clk 0:00:31.7]} 33... Kh8 {[%clk 0:01:37.1]} 34. h3 {[%clk 0:00:30.5]}
1-0

[Event "Early-Titled-Tuesday-Blitz-January-23-2024"]
[Site "Chess.com"]
[Date "2024.01.23"]
[Round "10"]
[White "Ural_bogatyr"]
[Black "Ginger_GM"]
[Result "0-1"]
[WhiteElo "2529"]
[BlackElo "2677"]
[TimeControl "180+1"]
[EndTime "9:54:29 PST"]
[Termination "Ginger_GM won by resignation"]

1. d4 {[%clk 0:02:59.7]} 1... Nf6 {[%clk 0:02:58.6]} 2. Nc3 {[%clk 0:02:48.9]}
2... e6 {[%clk 0:02:54.5]} 3. e4 {[%clk 0:02:48.5]} 3... d5 {[%clk 0:02:54]} 4.
Bg5 {[%clk 0:02:48.9]} 4... dxe4 {[%clk 0:02:53.4]} 5. Nxe4 {[%clk 0:02:48.3]}
5... Be7 {[%clk 0:02:53.8]} 6. Nxf6+ {[%clk 0:02:48]} 6... Bxf6 {[%clk
0:02:51.8]} 7. Bxf6 {[%clk 0:02:48.1]} 7... Qxf6 {[%clk 0:02:51.9]} 8. Nf3
{[%clk 0:02:48.7]} 8... O-O {[%clk 0:02:51.5]} 9. Qd3 {[%clk 0:02:48.7]} 9... b6
{[%clk 0:02:48.2]} 10. Qe4 {[%clk 0:02:48.3]} 10... c6 {[%clk 0:02:47.9]} 11.
Bd3 {[%clk 0:02:48.4]} 11... g6 {[%clk 0:02:47.1]} 12. h4 {[%clk 0:02:48.3]}
12... Ba6 {[%clk 0:02:39.6]} 13. c4 {[%clk 0:02:41.5]} 13... b5 {[%clk
0:02:29.7]} 14. b3 {[%clk 0:02:39.7]} 14... bxc4 {[%clk 0:02:29.5]} 15. bxc4
{[%clk 0:02:40.6]} 15... Qf5 {[%clk 0:02:28.4]} 16. Qxf5 {[%clk 0:02:35.6]}
16... gxf5 {[%clk 0:02:28]} 17. Kd2 {[%clk 0:02:26.7]} 17... Nd7 {[%clk
0:02:27]} 18. Rab1 {[%clk 0:02:22.3]} 18... Rfd8 {[%clk 0:02:23.4]} 19. Kc3
{[%clk 0:02:21.3]} 19... Nb6 {[%clk 0:02:14.7]} 20. Rb4 {[%clk 0:02:18.3]} 20...
Rac8 {[%clk 0:02:12.6]} 21. Rbb1 {[%clk 0:01:03]} 21... c5 {[%clk 0:02:12.2]}
22. d5 {[%clk 0:01:03.1]} 22... exd5 {[%clk 0:02:02.2]} 23. Bxf5 {[%clk
0:01:02.7]} 23... d4+ {[%clk 0:01:56.4]} 24. Kc2 {[%clk 0:01:02.2]} 24... Rc7
{[%clk 0:01:52.4]} 25. h5 {[%clk 0:00:56.5]} 25... Nxc4 {[%clk 0:01:32.7]} 26.
Rb3 {[%clk 0:00:56.4]} 26... Nd6 {[%clk 0:01:29.2]} 27. g4 {[%clk 0:00:46.8]}
27... c4 {[%clk 0:01:26.2]} 28. Ra3 {[%clk 0:00:46.6]} 28... d3+ {[%clk
0:01:21.4]} 29. Kd2 {[%clk 0:00:43.7]} 29... Bb7 {[%clk 0:01:21.1]} 30. Rh3
{[%clk 0:00:41.7]} 30... Nb5 {[%clk 0:01:19.8]} 0-1

[Event "Early-Titled-Tuesday-Blitz-January-23-2024"]
[Site "Chess.com"]
[Date "2024.01.23"]
[Round "10"]
[White "sonicdravise"]
[Black "Bkmzzzzz"]
[Result "1-0"]
[WhiteElo "2614"]
[BlackElo "2392"]
[TimeControl "180+1"]
[EndTime "9:54:36 PST"]
[Termination "sonicdravise won by resignation"]

1. d4 {[%clk 0:03:00.9]} 1... d5 {[%clk 0:03:00.1]} 2. c4 {[%clk 0:03:00.6]}
2... dxc4 {[%clk 0:03:01]} 3. Nf3 {[%clk 0:02:59.1]} 3... a6 {[%clk 0:03:00.9]}
4. e3 {[%clk 0:02:51.9]} 4... Nf6 {[%clk 0:03:00.6]} 5. Bxc4 {[%clk 0:02:51.4]}
5... e6 {[%clk 0:03:01.2]} 6. O-O {[%clk 0:02:50.8]} 6... c5 {[%clk 0:03:01.7]}
7. Bb3 {[%clk 0:02:49]} 7... Be7 {[%clk 0:02:59]} 8. Qe2 {[%clk 0:02:27.8]} 8...
cxd4 {[%clk 0:02:58.3]} 9. exd4 {[%clk 0:02:27.4]} 9... O-O {[%clk 0:02:57.3]}
10. Nc3 {[%clk 0:02:25.7]} 10... Nbd7 {[%clk 0:02:53.1]} 11. Bg5 {[%clk
0:02:23.9]} 11... Nb6 {[%clk 0:02:34.8]} 12. Rad1 {[%clk 0:02:19.9]} 12... Nfd5
{[%clk 0:02:03.1]} 13. Bd2 {[%clk 0:02:05.5]} 13... Bf6 {[%clk 0:01:56.6]} 14.
Rfe1 {[%clk 0:01:59.7]} 14... Bd7 {[%clk 0:01:39.9]} 15. Bc2 {[%clk 0:01:59.4]}
15... Bc6 {[%clk 0:01:27.4]} 16. Qd3 {[%clk 0:01:48.4]} 16... g6 {[%clk
0:01:26.1]} 17. Ne4 {[%clk 0:01:41.5]} 17... Bg7 {[%clk 0:01:21.6]} 18. Ne5
{[%clk 0:01:27]} 18... Bb5 {[%clk 0:01:11]} 19. Qh3 {[%clk 0:01:26.3]} 19... Rc8
{[%clk 0:01:01.6]} 20. Ng5 {[%clk 0:01:15.7]} 20... Nf6 {[%clk 0:01:01.8]} 21.
Nexf7 {[%clk 0:00:56.7]} 21... Rxf7 {[%clk 0:00:56]} 22. Nxf7 {[%clk 0:00:56.1]}
22... Kxf7 {[%clk 0:00:55.3]} 23. Qxe6+ {[%clk 0:00:55.6]} 23... Kf8 {[%clk
0:00:55.2]} 24. Bb4+ {[%clk 0:00:56]} 1-0

[Event "Early-Titled-Tuesday-Blitz-January-23-2024"]
[Site "Chess.com"]
[Date "2024.01.23"]
[Round "10"]
[White "InitiatingASC"]
[Black "Pastore1978"]
[Result "0-1"]
[WhiteElo "2421"]
[BlackElo "2291"]
[TimeControl "180+1"]
[EndTime "9:54:57 PST"]
[Termination "Pastore1978 won by resignation"]

1. d3 {[%clk 0:02:59.8]} 1... c5 {[%clk 0:02:57.8]} 2. g3 {[%clk 0:02:58.8]}
2... g6 {[%clk 0:02:56.9]} 3. Bg2 {[%clk 0:02:58.9]} 3... Bg7 {[%clk 0:02:57.6]}
4. e4 {[%clk 0:02:58.6]} 4... Nc6 {[%clk 0:02:57.8]} 5. Ne2 {[%clk 0:02:58.2]}
5... a6 {[%clk 0:02:56.3]} 6. c3 {[%clk 0:02:58.2]} 6... e5 {[%clk 0:02:52.9]}
7. Na3 {[%clk 0:02:54.4]} 7... Nge7 {[%clk 0:02:52.6]} 8. Nc4 {[%clk 0:02:54.1]}
8... d6 {[%clk 0:02:53]} 9. a4 {[%clk 0:02:53.7]} 9... O-O {[%clk 0:02:52.9]}
10. O-O {[%clk 0:02:51.7]} 10... f5 {[%clk 0:02:49]} 11. Bg5 {[%clk 0:02:48.5]}
11... h6 {[%clk 0:02:45.9]} 12. Bxe7 {[%clk 0:02:44.7]} 12... Qxe7 {[%clk
0:02:46.8]} 13. Nb6 {[%clk 0:02:38.1]} 13... Rb8 {[%clk 0:02:47]} 14. Nxc8
{[%clk 0:02:15.8]} 14... Rbxc8 {[%clk 0:02:47.9]} 15. exf5 {[%clk 0:02:13.9]}
15... gxf5 {[%clk 0:02:47.6]} 16. Bd5+ {[%clk 0:02:07.5]} 16... Kh8 {[%clk
0:02:47]} 17. f4 {[%clk 0:01:53.5]} 17... e4 {[%clk 0:02:41.6]} 18. dxe4 {[%clk
0:01:49.7]} 18... fxe4 {[%clk 0:02:42.5]} 19. Qc2 {[%clk 0:01:48]} 19... Rce8
{[%clk 0:02:40.6]} 20. Rae1 {[%clk 0:01:41.6]} 20... e3 {[%clk 0:02:19.1]} 21.
Rf3 {[%clk 0:01:29.9]} 21... Qd7 {[%clk 0:02:04.8]} 22. Nc1 {[%clk 0:01:21.4]}
22... Ne7 {[%clk 0:02:04.9]} 23. c4 {[%clk 0:01:09.9]} 23... Nxd5 {[%clk
0:02:02.3]} 24. cxd5 {[%clk 0:01:08.2]} 24... Bd4 {[%clk 0:02:02.8]} 25. Ne2
{[%clk 0:01:01.9]} 25... Qf5 {[%clk 0:01:54.9]} 26. Qb3 {[%clk 0:00:31.9]} 26...
Re7 {[%clk 0:01:42.2]} 27. Kg2 {[%clk 0:00:13.1]} 27... Qf6 {[%clk 0:01:36.9]}
28. Nxd4 {[%clk 0:00:09.8]} 28... cxd4 {[%clk 0:01:37.8]} 29. Qd3 {[%clk
0:00:09.3]} 29... Rc7 {[%clk 0:01:31.8]} 30. Rd1 {[%clk 0:00:09.4]} 30... Re8
{[%clk 0:01:23.8]} 31. Qxd4 {[%clk 0:00:08.6]} 31... Qxd4 {[%clk 0:01:24.7]} 32.
Rxd4 {[%clk 0:00:08.4]} 32... e2 {[%clk 0:01:25.5]} 0-1

[Event "Early-Titled-Tuesday-Blitz-January-23-2024"]
[Site "Chess.com"]
[Date "2024.01.23"]
[Round "10"]
[White "anasta10"]
[Black "diamonds13"]
[Result "1-0"]
[WhiteElo "2510"]
[BlackElo "2334"]
[TimeControl "180+1"]
[EndTime "9:55:05 PST"]
[Termination "anasta10 won by resignation"]

1. Nf3 {[%clk 0:03:00.9]} 1... c5 {[%clk 0:02:59.6]} 2. c4 {[%clk 0:03:01.6]}
2... Nc6 {[%clk 0:02:59.9]} 3. g3 {[%clk 0:03:02.3]} 3... g6 {[%clk 0:03:00.3]}
4. Bg2 {[%clk 0:03:03]} 4... Bg7 {[%clk 0:03:00.8]} 5. O-O {[%clk 0:03:03.8]}
5... e5 {[%clk 0:03:01]} 6. Nc3 {[%clk 0:03:04.5]} 6... d6 {[%clk 0:03:01.4]} 7.
Rb1 {[%clk 0:03:04.6]} 7... Nge7 {[%clk 0:03:00.9]} 8. d3 {[%clk 0:03:05.3]}
8... Be6 {[%clk 0:02:59.7]} 9. a3 {[%clk 0:03:05.4]} 9... a5 {[%clk 0:02:56.7]}
10. Ne1 {[%clk 0:03:03.3]} 10... h6 {[%clk 0:02:56.3]} 11. Nc2 {[%clk
0:03:03.7]} 11... O-O {[%clk 0:02:54.5]} 12. b4 {[%clk 0:02:58.6]} 12... axb4
{[%clk 0:02:51.8]} 13. axb4 {[%clk 0:02:58.7]} 13... Qc8 {[%clk 0:02:41.7]} 14.
bxc5 {[%clk 0:02:54.4]} 14... dxc5 {[%clk 0:02:41.6]} 15. Be3 {[%clk 0:02:44.8]}
15... Ra5 {[%clk 0:02:25.5]} 16. Na1 {[%clk 0:02:24.9]} 16... Nd4 {[%clk
0:02:23.4]} 17. Bxb7 {[%clk 0:02:08.6]} 17... Qd7 {[%clk 0:02:23.5]} 18. Bg2
{[%clk 0:02:01.8]} 18... Bh3 {[%clk 0:02:23.2]} 19. Nb3 {[%clk 0:01:51.7]} 19...
Ra3 {[%clk 0:02:22.2]} 20. Nxc5 {[%clk 0:01:02.9]} 20... Qc8 {[%clk 0:02:20.2]}
21. Bxh3 {[%clk 0:00:26.2]} 21... Qxh3 {[%clk 0:02:16.4]} 22. Nb5 {[%clk
0:00:26.6]} 22... Ra2 {[%clk 0:02:13.6]} 23. Bxd4 {[%clk 0:00:18.8]} 23... exd4
{[%clk 0:02:12]} 24. Ra1 {[%clk 0:00:13.6]} 24... Rfa8 {[%clk 0:02:01.3]} 25.
Rxa2 {[%clk 0:00:11.4]} 25... Rxa2 {[%clk 0:02:01]} 26. Re1 {[%clk 0:00:12]}
26... Qf5 {[%clk 0:01:51.1]} 27. Qb1 {[%clk 0:00:11.6]} 27... Ra8 {[%clk
0:01:40.3]} 28. Nb3 {[%clk 0:00:11.8]} 28... h5 {[%clk 0:01:38.4]} 29. Nd2
{[%clk 0:00:09.9]} 29... h4 {[%clk 0:01:37.1]} 30. Nf3 {[%clk 0:00:10.6]} 30...
hxg3 {[%clk 0:01:32.7]} 31. hxg3 {[%clk 0:00:11.5]} 31... Rb8 {[%clk 0:01:30.8]}
32. Qc1 {[%clk 0:00:11.4]} 32... Qh5 {[%clk 0:01:29]} 33. Qf4 {[%clk 0:00:11.4]}
33... Rd8 {[%clk 0:01:26.5]} 34. Qh4 {[%clk 0:00:11.8]} 34... Qxb5 {[%clk
0:01:22.6]} 35. cxb5 {[%clk 0:00:11.4]} 1-0

[Event "Early-Titled-Tuesday-Blitz-January-23-2024"]
[Site "Chess.com"]
[Date "2024.01.23"]
[Round "10"]
[White "esrosenberg"]
[Black "dosto07"]
[Result "0-1"]
[WhiteElo "2354"]
[BlackElo "2537"]
[TimeControl "180+1"]
[EndTime "9:55:09 PST"]
[Termination "dosto07 won by resignation"]

1. c4 {[%clk 0:02:54.2]} 1... e5 {[%clk 0:02:59.3]} 2. g3 {[%clk 0:02:54.2]}
2... Nf6 {[%clk 0:02:56.3]} 3. Bg2 {[%clk 0:02:54.5]} 3... Nc6 {[%clk
0:02:53.6]} 4. Nc3 {[%clk 0:02:45.8]} 4... Bb4 {[%clk 0:02:53.5]} 5. Nd5 {[%clk
0:02:45.8]} 5... Bc5 {[%clk 0:02:51]} 6. e3 {[%clk 0:02:45.5]} 6... Nxd5 {[%clk
0:02:44.3]} 7. cxd5 {[%clk 0:02:45.5]} 7... Ne7 {[%clk 0:02:44.8]} 8. Ne2 {[%clk
0:02:42.7]} 8... d6 {[%clk 0:02:38.6]} 9. O-O {[%clk 0:02:42.5]} 9... O-O {[%clk
0:02:37.9]} 10. Qc2 {[%clk 0:02:37.8]} 10... Bb6 {[%clk 0:02:35]} 11. f4 {[%clk
0:02:32.4]} 11... Bf5 {[%clk 0:02:26.5]} 12. d3 {[%clk 0:02:22.7]} 12... Qd7
{[%clk 0:02:24.1]} 13. Kh1 {[%clk 0:02:17.1]} 13... Bh3 {[%clk 0:02:24.1]} 14.
e4 {[%clk 0:02:05.6]} 14... Bxg2+ {[%clk 0:02:21.9]} 15. Kxg2 {[%clk 0:02:05.7]}
15... f5 {[%clk 0:02:19.1]} 16. b3 {[%clk 0:01:53.7]} 16... c6 {[%clk
0:01:57.4]} 17. Bb2 {[%clk 0:01:43.6]} 17... cxd5 {[%clk 0:01:45]} 18. fxe5
{[%clk 0:01:43.7]} 18... Rac8 {[%clk 0:01:34.9]} 19. Qd2 {[%clk 0:01:41.9]}
19... dxe4 {[%clk 0:01:33.6]} 20. dxe4 {[%clk 0:01:42]} 20... Qc6 {[%clk
0:01:21.6]} 21. exd6 {[%clk 0:01:16.5]} 21... Qxe4+ {[%clk 0:01:19.6]} 22. Rf3
{[%clk 0:01:16.1]} 22... Rc2 {[%clk 0:01:17]} 23. Qxc2 {[%clk 0:00:52.4]} 23...
Qxc2 {[%clk 0:01:15.6]} 24. dxe7 {[%clk 0:00:47.8]} 24... Qxe2+ {[%clk
0:01:13.3]} 25. Kh3 {[%clk 0:00:47.7]} 25... Qxf3 {[%clk 0:01:02.9]} 26. exf8=Q+
{[%clk 0:00:47.5]} 26... Kxf8 {[%clk 0:01:03.5]} 27. Ba3+ {[%clk 0:00:40.4]}
27... Kf7 {[%clk 0:01:02.6]} 28. Rc1 {[%clk 0:00:39.2]} 28... g5 {[%clk
0:00:57.5]} 29. Rc8 {[%clk 0:00:38.5]} 29... f4 {[%clk 0:00:45]} 30. Rf8+ {[%clk
0:00:36.5]} 30... Kg7 {[%clk 0:00:44.1]} 0-1

[Event "Early-Titled-Tuesday-Blitz-January-23-2024"]
[Site "Chess.com"]
[Date "2024.01.23"]
[Round "10"]
[White "DarZay"]
[Black "tolia123"]
[Result "0-1"]
[WhiteElo "2256"]
[BlackElo "2118"]
[TimeControl "180+1"]
[EndTime "9:55:11 PST"]
[Termination "tolia123 won by resignation"]

1. e4 {[%clk 0:02:56.8]} 1... c5 {[%clk 0:03:00]} 2. Nf3 {[%clk 0:02:55]} 2...
g6 {[%clk 0:02:56.3]} 3. d4 {[%clk 0:02:53.4]} 3... cxd4 {[%clk 0:02:57.2]} 4.
Nxd4 {[%clk 0:02:50.2]} 4... Nc6 {[%clk 0:02:56.9]} 5. Nc3 {[%clk 0:02:49.2]}
5... Bg7 {[%clk 0:02:56.4]} 6. Be3 {[%clk 0:02:45.8]} 6... Nf6 {[%clk
0:02:56.8]} 7. Bc4 {[%clk 0:02:44.6]} 7... O-O {[%clk 0:02:50.5]} 8. O-O {[%clk
0:02:42.3]} 8... d6 {[%clk 0:02:50.1]} 9. h3 {[%clk 0:02:30.8]} 9... Bd7 {[%clk
0:02:49.1]} 10. f4 {[%clk 0:02:29.2]} 10... Nxd4 {[%clk 0:02:49.4]} 11. Bxd4
{[%clk 0:02:29.2]} 11... Bc6 {[%clk 0:02:49.9]} 12. Qd3 {[%clk 0:02:22.2]} 12...
Nd7 {[%clk 0:02:49.3]} 13. Bxg7 {[%clk 0:02:21.3]} 13... Kxg7 {[%clk 0:02:50.2]}
14. Qd4+ {[%clk 0:02:20.3]} 14... Nf6 {[%clk 0:02:40.8]} 15. Rae1 {[%clk
0:02:15.1]} 15... a6 {[%clk 0:02:26.3]} 16. Nd5 {[%clk 0:02:11]} 16... b5 {[%clk
0:02:20.1]} 17. Nxf6 {[%clk 0:02:08.5]} 17... exf6 {[%clk 0:02:21]} 18. Bb3
{[%clk 0:02:07.1]} 18... a5 {[%clk 0:02:16.6]} 19. a3 {[%clk 0:02:05.2]} 19...
Re8 {[%clk 0:02:11.4]} 20. Rf3 {[%clk 0:02:03.2]} 20... d5 {[%clk 0:02:09.1]}
21. e5 {[%clk 0:01:59.8]} 21... fxe5 {[%clk 0:02:05.7]} 22. fxe5 {[%clk
0:01:58]} 22... Kg8 {[%clk 0:01:59.6]} 23. Rd3 {[%clk 0:01:55]} 23... Qe7 {[%clk
0:01:48.2]} 24. Bxd5 {[%clk 0:01:50.3]} 24... Rad8 {[%clk 0:01:48.2]} 25. Qe4
{[%clk 0:01:49.4]} 25... Qc5+ {[%clk 0:01:42.7]} 26. Qd4 {[%clk 0:01:41.1]}
26... Qxd4+ {[%clk 0:01:38.8]} 27. Rxd4 {[%clk 0:01:41.5]} 27... Rxd5 {[%clk
0:01:39.4]} 28. Rxd5 {[%clk 0:01:40.8]} 28... Bxd5 {[%clk 0:01:40.3]} 29. Kf2
{[%clk 0:01:40.4]} 29... Rc8 {[%clk 0:01:33.3]} 30. c3 {[%clk 0:01:39.6]} 30...
Kf8 {[%clk 0:01:31.6]} 31. Kg3 {[%clk 0:01:39.1]} 31... Ke7 {[%clk 0:01:31.7]}
32. Kf4 {[%clk 0:01:39.5]} 32... Ke6 {[%clk 0:01:32]} 33. g4 {[%clk 0:01:37.4]}
33... h6 {[%clk 0:01:29.8]} 34. h4 {[%clk 0:01:34.8]} 34... Rc4+ {[%clk
0:01:30]} 35. Kg3 {[%clk 0:01:34.6]} 35... Re4 {[%clk 0:01:29.8]} 36. Rb1 {[%clk
0:01:28]} 36... Kxe5 {[%clk 0:01:28.9]} 37. b4 {[%clk 0:01:28.2]} 37... a4
{[%clk 0:01:27.2]} 38. Rf1 {[%clk 0:01:27.6]} 38... Re3+ {[%clk 0:01:25.1]} 39.
Kh2 {[%clk 0:01:27]} 39... f5 {[%clk 0:01:24.7]} 40. gxf5 {[%clk 0:01:26.9]}
40... gxf5 {[%clk 0:01:25.6]} 41. Rc1 {[%clk 0:01:25.1]} 41... f4 {[%clk
0:01:25.9]} 42. h5 {[%clk 0:01:24.7]} 42... Re2+ {[%clk 0:01:19.6]} 43. Kh3
{[%clk 0:01:24.1]} 43... Ke4 {[%clk 0:01:11.7]} 44. Rd1 {[%clk 0:01:22.3]} 44...
f3 {[%clk 0:01:04.6]} 45. Rd4+ {[%clk 0:01:14.9]} 45... Ke5 {[%clk 0:01:03.9]}
46. Kg3 {[%clk 0:01:13.8]} 46... f2 {[%clk 0:00:59.3]} 47. Rd1 {[%clk
0:01:04.3]} 47... Re1 {[%clk 0:00:59.2]} 0-1

[Event "Early-Titled-Tuesday-Blitz-January-23-2024"]
[Site "Chess.com"]
[Date "2024.01.23"]
[Round "10"]
[White "deribas12345"]
[Black "flomarechot"]
[Result "1-0"]
[WhiteElo "2460"]
[BlackElo "2284"]
[TimeControl "180+1"]
[EndTime "9:55:13 PST"]
[Termination "deribas12345 won by resignation"]

1. d4 {[%clk 0:02:55.6]} 1... Nf6 {[%clk 0:02:59.5]} 2. c4 {[%clk 0:02:53.5]}
2... d6 {[%clk 0:02:59.9]} 3. Nc3 {[%clk 0:02:53.8]} 3... e5 {[%clk 0:03:00.1]}
4. d5 {[%clk 0:02:53.5]} 4... g6 {[%clk 0:02:58.4]} 5. e4 {[%clk 0:02:53.8]}
5... Bg7 {[%clk 0:02:58.8]} 6. Nge2 {[%clk 0:02:54.1]} 6... O-O {[%clk
0:02:59.4]} 7. Ng3 {[%clk 0:02:54.3]} 7... a5 {[%clk 0:02:58.7]} 8. Be2 {[%clk
0:02:45.9]} 8... Na6 {[%clk 0:02:56.5]} 9. O-O {[%clk 0:02:45]} 9... h5 {[%clk
0:02:52.8]} 10. Bg5 {[%clk 0:02:44.5]} 10... Nc5 {[%clk 0:02:49.9]} 11. Bxh5
{[%clk 0:02:43]} 11... gxh5 {[%clk 0:02:32.5]} 12. Nxh5 {[%clk 0:02:41.9]} 12...
Bg4 {[%clk 0:02:16.3]} 13. Nxf6+ {[%clk 0:02:38.5]} 13... Bxf6 {[%clk 0:02:16]}
14. Qxg4 {[%clk 0:02:38.7]} 14... Bxg5 {[%clk 0:02:15.9]} 15. h4 {[%clk
0:02:39]} 15... f6 {[%clk 0:02:07]} 16. f4 {[%clk 0:02:28.8]} 16... exf4 {[%clk
0:02:01.8]} 17. Rxf4 {[%clk 0:02:27.7]} 17... Qd7 {[%clk 0:01:36.6]} 18. Rf5
{[%clk 0:02:26.3]} 18... Rf7 {[%clk 0:01:01.5]} 19. hxg5 {[%clk 0:02:23.4]}
19... Rg7 {[%clk 0:01:01.8]} 20. Raf1 {[%clk 0:02:13.3]} 20... fxg5 {[%clk
0:00:59.9]} 21. e5 {[%clk 0:02:12.2]} 21... dxe5 {[%clk 0:00:54.5]} 22. Qh5
{[%clk 0:02:07.6]} 22... Qe7 {[%clk 0:00:35.2]} 23. d6 {[%clk 0:02:02.2]} 23...
Qe8 {[%clk 0:00:18.6]} 24. Qxe8+ {[%clk 0:01:53.7]} 24... Rxe8 {[%clk
0:00:19.5]} 25. dxc7 {[%clk 0:01:54.2]} 25... e4 {[%clk 0:00:17.8]} 26. Nd5
{[%clk 0:01:53.5]} 26... Nd7 {[%clk 0:00:16.2]} 27. Re5 {[%clk 0:01:32.1]} 27...
Rc8 {[%clk 0:00:10.6]} 28. Ne7+ {[%clk 0:01:31.8]} 28... Rxe7 {[%clk 0:00:10.2]}
29. Rxe7 {[%clk 0:01:31.6]} 29... Nc5 {[%clk 0:00:06.2]} 30. Rff7 {[%clk
0:01:28.5]} 30... a4 {[%clk 0:00:05.7]} 31. Kf2 {[%clk 0:01:25.9]} 31... g4
{[%clk 0:00:05.2]} 32. Ke3 {[%clk 0:01:25.5]} 32... g3 {[%clk 0:00:05.5]} 33.
Rg7+ {[%clk 0:01:24.9]} 33... Kf8 {[%clk 0:00:06.1]} 34. Ref7+ {[%clk
0:01:24.3]} 34... Ke8 {[%clk 0:00:06.2]} 35. Rh7 {[%clk 0:01:24.1]} 35... Ne6
{[%clk 0:00:04.9]} 36. Re7+ {[%clk 0:01:24.3]} 36... Kf8 {[%clk 0:00:04.9]} 37.
Rxe6 {[%clk 0:01:25.2]} 1-0